Cogmind - Beta 13 @@@ ROGUE MODE // 2024.08.02 @ 09:49:17 Player: weedlord420 Result: Self-destructed Performance ------------- Evolutions (2) 1000 Regions Visited (3) 600 Robots Destroyed (46) 230 Value Destroyed (1589) 1589 Prototype IDs (11) 220 Alien Tech Used (0) 0 Bonus (-16) -16 TOTAL SCORE: 3623 Bonus ------- High Alert Combat Kills 13 Friendly Fire -29 Cogmind --------- Core Integrity 518/550 Matter 300/300 Energy 135/140 System Corruption 0% Temperature Cool (3) Movement Flying (40) Location -8/Materials Parts ------- > --- POWER (1) -------- Light Deuterium Engine > --- PROPULSION (4) --- Flightbrick > --- UTILITY (4+3) ---- Heat Sink (+) Heat Sink (+) Improved Heat Sink Advanced Weight Redist. System Machine Analyzer (+) ECM Suite Light Armor Plating > --- WEAPON (2) ------- Spread Laser Advanced Beam Rifle > --- INVENTORY (5) ---- Light Deuterium Engine Shotgun Heavy Rocket Launcher Heavy Rocket Launcher Heavy Rocket Launcher Peak State ------------ > --- POWER ------------ Light Deuterium Engine > --- PROPULSION ------- Flightbrick > --- UTILITY ---------- Heat Sink Heat Sink Advanced Weight Redist. System Machine Analyzer ECM Suite Reaction Control System Light Armor Plating > --- WEAPON ----------- Advanced Beam Rifle Shotgun > --- INVENTORY -------- Shotgun Heavy Rocket Launcher Heavy Rocket Launcher Heavy Rocket Launcher Flail [Rating: 59] Favorites ----------- Power Ion Engine Engine Ion Engine Propulsion Light Treads Treads Light Treads Wheel Wheel Flight Unit Flightbrick Utility Large Storage Unit Device Heat Sink Storage Large Storage Unit Processor Machine Analyzer Protection Medium Armor Plating Weapon Assault Rifle Energy Gun Advanced Beam Rifle Energy Cannon Subdweller Beam Cannon Ballistic Gun Assault Rifle Ballistic Cannon Battle Cannon Launcher Heavy Rocket Launcher Impact Weapon Flail Build | -11 -10 -10 -8 ------- Run | Yrd Mat Sub Mat Slots Evolved 4 | . . . 4 Power . | . . . . Propulsion 2 | . . . 2 Utility 2 | . . . 2 Weapon . | . . . . Parts Attached 56 | 7 8 25 16 Power 5 | 1 1 2 1 Engine 5 | 1 1 2 1 Core . | . . . . Reactor . | . . . . Propulsion 5 | 2 1 1 1 Treads 3 | 2 1 . . Leg . | . . . . Wheel 1 | . . 1 . Hover . | . . . . Flight 1 | . . . 1 Utility 27 | 1 5 11 10 Device 12 | . 1 4 7 Storage 3 | 1 1 1 . Processor 1 | . . . 1 Hackware . | . . . . Protection 11 | . 3 6 2 Artifact . | . . . . Weapon 19 | 3 1 11 4 Energy Gun 2 | . . . 2 Energy Cannon 2 | . . 2 . Ballistic Gun 7 | 3 1 2 1 Ballistic Cannon 2 | . . 2 . Launcher 5 | . . 4 1 Special Weapon . | . . . . Impact Weapon 1 | . . 1 . Slashing Weapon . | . . . . Piercing Weapon . | . . . . Special Melee Weapon . | . . . . Unidentified Prototypes 1 | . . . 1 Parts Lost 12 | . 3 9 . Power 2 | . 1 1 . Propulsion 3 | . . 3 . Utility 4 | . 2 2 . Weapon 3 | . . 3 . Highest Loss Streak 5 | . 2 5 . To Critical Strikes . | . . . . Average Slot Usage (%) 90 | . 97 95 60 Engine 12 | . 13 13 5 Treads 20 | . 27 23 . Flight 1 | . . . 7 Device 5 | . . 3 25 Storage 11 | . 14 13 . Protection 10 | . 12 10 4 Energy Gun 1 | . . . 8 Energy Cannon 2 | . . 5 . Ballistic Gun 17 | . 26 16 1 Ballistic Cannon 2 | . . 4 . Naked Turns . | . . . . Heaviest Build 44 | 14 36 44 18 Greatest Support 40 | 40 40 40 24 Greatest Overweight (x) 3 | . . 3 . Average Overweight (x) . | . . . . Largest Inventory Capacity 15 | 8 15 15 5 Average Capacity 12 | 7 11 14 5 Most Carried 15 | 5 11 15 5 Average Carried 10 | 1 6 14 4 Final Capacity 15 | 8 15 5 5 Final Carried 11 | 2 11 4 5 Class Distribution -------------------- 89% | Mutant 10% | Scavenger-Mutant Dominant Class ---------------- Mutant | -10/Materials Mutant | -10/Subcaves Scavenger-Mutant | -8/Materials Resources | -11 -10 -10 -8 ----------- Run | Yrd Mat Sub Mat Matter Collected 1529 | 189 342 580 418 Remotely . | . . . . Salvage Created 1445 | 12 446 388 599 Parts 99 | 3 30 31 35 Haulers Intercepted . | . . . . Recyclers Shooed . | . . . . Parts Field Recycled . | . . . . Retrieved Matter . | . . . . Parts Self-Destructed 13 | . . 13 . Prevented . | . . . . Kills | -11 -10 -10 -8 ------- Run | Yrd Mat Sub Mat Combat Hostiles Destroyed 43 | . 13 15 15 Guns 32 | . 13 4 15 Cannons 3 | . . 3 . AOE 7 | . . 7 . Classes Destroyed 7 | 1 4 . 2 Tunneler 1 | 1 . . . Watcher 2 | . 1 . 1 Swarmer 8 | . 5 . 3 Grunt 15 | . 6 1 8 Brawler 1 | . . . 1 Sentry 3 | . . . 3 Subdweller 16 | . 2 14 . Best Kill Streak 6 | 1 3 4 6 Combat Bots Only 6 | . 3 4 6 Max Kills in Single Turn 2 | 1 2 2 2 Gunslinging 1 | . 1 . 1 Exploded 2 | . . 2 . Melee . | . . . . Uniques/NPCs Destroyed . | . . . . Combat | -11 -10 -10 -8 -------- Run | Yrd Mat Sub Mat Hostile Shots Fired 214 | . 80 71 63 Missed 73 | . 28 18 27 Damage Taken 2698 | . 844 1333 521 Core 238 | . 31 175 32 Absorbed by Shields . | . . . . Regen/Repaired (Parts) 144 | . 144 . . Core Remaining (%) 58 | 100 . 17 . Volleys Fired 154 | 1 49 56 48 Largest 2 | 2 2 2 2 Hottest 126 | 40 40 119 126 Shots Fired 280 | 2 98 96 84 Gun 216 | 2 98 33 83 Cannon 51 | . . 51 . Launcher 13 | . . 12 1 Special . | . . . . Kinetic 189 | 2 98 78 11 Thermal 90 | . . 18 72 Explosive 1 | . . . 1 Electromagnetic . | . . . . Robot Hit Streak 25 | 1 14 25 12 Robot Miss Streak 6 | . 4 3 6 Penetration Max . | . . . . Secondary Targets 4 | . 2 . 2 Max Gunslinging Chain 1 | . 1 . 1 Shots Hit Robots 182 | 1 65 57 59 Core Hits 105 | 1 26 25 53 Critical Kills 1 | . . 1 . Critical Parts Destroyed . | . . . . Critical Strikes 7 | . 1 2 4 Burn 4 | . . . 4 Meltdown 1 | . . 1 . Destroy 1 | . 1 . . Blast 1 | . . 1 . Melee Attacks 3 | . . 2 1 Impact 3 | . . 2 1 Slashing . | . . . . Piercing . | . . . . Sneak Attacks . | . . . . Combat Hostiles . | . . . . Follow-up Attacks . | . . . . Damage Inflicted 4325 | 11 821 2473 1020 Guns 2166 | 11 821 355 979 Cannons 667 | . . 667 . Explosions 1466 | . . 1451 15 Melee 26 | . . . 26 Ramming . | . . . . Kinetic 3332 | 11 821 2335 165 Thermal 952 | . . 138 814 Explosive 15 | . . . 15 Electromagnetic . | . . . . Impact 26 | . . . 26 Slashing . | . . . . Piercing . | . . . . Highest Corruption . | . . . . Average Corruption . | . . . . Corruption Purged . | . . . . Corruption Blocked . | . . . . Overload Shots . | . . . . Overflow Damage 25 | . . 25 . Projectiles . | . . . . Explosions 25 | . . 25 . Melee . | . . . . Knockbacks 7 | . . 7 . Impact . | . . . . Kinetic 7 | . . 7 . Secondary . | . . . . Self-Inflicted Damage 77 | . . 77 . Shots 4 | . . 4 . Rammed . | . . . . Targets Rammed . | . . . . Kicked . | . . . . Crushed . | . . . . Highest Temperature 84 | . 42 84 42 Average Temperature 18 | . 20 16 19 Received Heat Transfer 651 | . 192 189 270 Siege Activations . | . . . . Robots Corrupted . | . . . . Combat Hostiles . | . . . . Parts Fried . | . . . . Impact Corruptions . | . . . . Robots Melted 1 | . . 1 . Combat Hostiles 1 | . . 1 . Parts Melted 3 | . . 1 2 Heat Transferred 1791 | . . 185 1606 Parts Sabotaged . | . . . . Parts Stolen . | . . . . Parts Stripped . | . . . . Power Chain Reactions . | . . . . Alert | -11 -10 -10 -8 ------- Run | Yrd Mat Sub Mat Peak Influence 456 | 5 286 . 456 Initial 3 | . 3 . . Average 137 | 1 130 . 166 Maximum Alert Level 2 | . 1 . 2 Low Security (%) 73 | 100 76 . 64 Level 1 25 | . 23 . 31 Level 2 1 | . . . 4 Level 3 . | . . . . Level 4 . | . . . . Level 5 . | . . . . High Security . | . . . . Max Security . | . . . . Squads Dispatched 5 | . 2 . 3 Investigation 1 | . . . 1 Extermination . | . . . . Reinforcement 3 | . 2 . 1 Assault . | . . . . Garrison 1 | . . . 1 Intercept . | . . . . Searches Triggered . | . . . . Construction Impeded . | . . . . Haulers Reinforced . | . . . . Active Scanning Responses . | . . . . Cargo Convoy Interrupts . | . . . . Stealth | -11 -10 -10 -8 --------- Run | Yrd Mat Sub Mat Distress Signals 3 | . 3 . . Communications Jammed . | . . . . Distress Signals . | . . . . Times Spotted 69 | . 26 24 19 Peak Tracking Total 9 | . 9 4 5 Tactical Retreats 2 | . 1 . 1 Traps | -11 -10 -10 -8 ------- Run | Yrd Mat Sub Mat Traps Triggered 3 | . 1 2 . Indirectly . | . . . . Trap Hack Attempts . | . . . . Triggered . | . . . . Disarmed . | . . . . Reprogrammed . | . . . . Reused . | . . . . Traps Extracted . | . . . . Installed . | . . . . Triggered 1 | . . 1 . Machines | -11 -10 -10 -8 ---------- Run | Yrd Mat Sub Mat Machines Disabled 3 | . 2 1 . Max in Single Turn 1 | . 1 1 . Machines Repaired . | . . . . Machines Dismantled . | . . . . Machines Sabotaged . | . . . . Overloaded Fab Kills . | . . . . Hacking | -11 -10 -10 -8 --------- Run | Yrd Mat Sub Mat Machines Accessed 7 | . 1 1 5 Terminals 5 | . . . 5 Fabricators . | . . . . Repair Stations 1 | . 1 . . Recycling Units . | . . . . Scanalyzers . | . . . . Garrison Access . | . . . . Total Hacks 28 | . 7 9 12 Successful 18 | . 5 9 4 Failed 10 | . 2 . 8 Catastrophic 3 | . . . 3 Database Lockouts . | . . . . Manual 13 | . . . 13 Terminals 12 | . . . 12 Fabricators . | . . . . Repair Stations 7 | . 7 . . Recycling Units . | . . . . Scanalyzers . | . . . . Garrison Access . | . . . . Terminal Hacks 9 | . . 9 . Record 8 | . . 8 . Derelict Proto ID Bank 1 | . . 1 . Fabricator Hacks . | . . . . Repair Station Hacks 5 | . 5 . . Scan Component 3 | . 3 . . Repair 2 | . 2 . . Recycling Unit Hacks . | . . . . Scanalyzer . | . . . . Garrison Access Hacks . | . . . . Unauthorized Hacks 4 | . . . 4 Terminals 4 | . . . 4 Assimilate 2 | . . . 2 Operators 2 | . . . 2 Fabricators . | . . . . Repair Stations . | . . . . Recycling Units . | . . . . Scanalyzers . | . . . . Garrison Access . | . . . . Data Cores Recovered . | . . . . Used . | . . . . Hacking Detections 6 | . 1 . 5 Full Trace Events 1 | . . . 1 Feedback Events . | . . . . Feedback Blocked . | . . . . Robot Schematics Acquired . | . . . . Robots Built . | . . . . Authchips . | . . . . Time . | . . . . Total Robot Build Rating . | . . . . Part Schematics Acquired . | . . . . Parts Built . | . . . . Authchips . | . . . . Time . | . . . . Total Part Build Rating . | . . . . Parts Repaired 2 | . 2 . . Time 52 | . 52 . . Parts Recycled . | . . . . Recycled Matter . | . . . . Retrieved Matter . | . . . . Retrieved Components . | . . . . Parts Scanalyzed . | . . . . Part Schematics Acquired . | . . . . Parts Damaged . | . . . . Bothacking | -11 -10 -10 -8 ------------ Run | Yrd Mat Sub Mat Used RIF Installer . | . . . . Robots Hacked . | . . . . Non-combat . | . . . . Combat . | . . . . Robot Hacks Applied . | . . . . Relay Couplers Released . | . . . . Fabnet Peak Effective % . | . . . . Robots Rewired . | . . . . Allies Hacked . | . . . . Hacks Repelled . | . . . . Allies | -11 -10 -10 -8 -------- Run | Yrd Mat Sub Mat Total Allies . | . . . . Largest Group . | . . . . Highest-Rated Group . | . . . . Highest-Rated Ally . | . . . . Total Orders . | . . . . Ally Attacks . | . . . . Total Damage . | . . . . Kills . | . . . . Allies Corrupted . | . . . . Allies Melted . | . . . . Intel | -11 -10 -10 -8 ------- Run | Yrd Mat Sub Mat Robot Analysis Total . | . . . . Derelict Logs Recovered 1 | . . 1 . Drone Launches . | . . . . Drone Recoveries . | . . . . Exploration | -11 -10 -10 -8 ------------- Run | Yrd Mat Sub Mat Turns Passed 2807 | 55 800 1520 432 Spaces Moved 1629 | 34 265 793 537 Core 181 | 14 . 44 123 Treads 916 | 20 265 631 . Legs . | . . . . Wheels 118 | . . 118 . Hover . | . . . . Flight 414 | . . . 414 Fastest Speed 40 | 50 160 50 40 Average Speed 121 | 114 160 161 42 Slowest Speed 240 | 160 160 240 50 Overloaded Moves . | . . . . Propulsion Burnouts . | . . . . Robots Hopped . | . . . . Cave-ins Triggered . | . . . . Exploration Rate (%) 33 | 4 42 57 31 Regions Visited 3 Branch Regions 1 Pre-discovered Areas 1 | . . 1 . Known Exits Taken . | . . . . Unknown Exits Taken 3 | 1 1 1 . Scrap Searched 7 | . . 7 . Spaces Dug . | . . . . Terrain Destroyed 183 | . . 167 16 Melee . | . . . . Projectile 3 | . . 3 . AOE 180 | . . 164 16 Terrain Rammed . | . . . . Walls Destroyed . | . . . . Machines Disabled . | . . . . Actions | -11 -10 -10 -8 --------- Run | Yrd Mat Sub Mat Total 2169 | 47 542 926 654 Wait 269 | . 206 26 37 Move 1626 | 33 264 792 537 Hop . | . . . . Pick Up 41 | 6 15 11 9 Fast Attach 11 | 2 . . 9 Attach 22 | 4 6 7 5 Detach 2 | . . 1 1 Swap 23 | 1 2 18 2 Drop 18 | . . 13 5 Fire 154 | 1 49 56 48 Melee 3 | . . 2 1 Ram . | . . . . Kick . | . . . . Crush . | . . . . Escape Stasis . | . . . . Rewire . | . . . . Trap . | . . . . Miscellaneous . | . . . . Route ------- -11/Scrapyard -10/Materials (discovered 3 exits: [*Mat] / [*Min] / *Sub) -10/Subcaves (discovered 2 exits: *Mat x2) -8/Materials History --------- Turn | Location | Event 10 | -11/Scrapyard | Discovered new exit (range 15) 56 | -11/Scrapyard | Entered Materials 310 | -10/Materials | Build established: Mutant 514 | -10/Materials | Repaired Assault Rifle 541 | -10/Materials | Repaired Lgt. Treads 568 | -10/Materials | Discovered new exit (range 7) 745 | -10/Materials | Discovered new exit (range 6) 756 | -10/Materials | Derelicts attacked the area 773 | -10/Materials | Discovered new exit (range 8) 856 | -10/Materials | Entered Subcaves 958 | -10/Subcaves | Ambushed by swarm of Subdwellers 988 | -10/Subcaves | Ambushed by Subdweller buried in earth 1007 | -10/Subcaves | Shifting Twisted Machinery released Mak. Light Armor Plating 1038 | -10/Subcaves | A swath of the cavern ceiling suddenly collapsed 1072 | -10/Subcaves | Shifting Twisted Machinery released Flamer 1080 | -10/Subcaves | Ambushed by angry Subdweller bent on revenge 1507 | -10/Subcaves | Discovered new exit (range 5) 1572 | -10/Subcaves | Shifting Twisted Machinery released Mak. Spear 1608 | -10/Subcaves | Shifting Twisted Machinery released Battle Cannon 1742 | -10/Subcaves | Visited 4L-MR0's lab 1772 | -10/Subcaves | Found Flightbrick 2004 | -10/Subcaves | Ambushed by Subdweller buried in earth 2005 | -10/Subcaves | Core integrity fell below 50% 2062 | -10/Subcaves | Shifting Twisted Machinery released Battle Cannon 2068 | -10/Subcaves | Discovered new exit (range 12) 2145 | -10/Subcaves | Shifting Twisted Machinery released Battle Cannon 2166 | -10/Subcaves | Lost 3 parts (1p2n) 2328 | -10/Subcaves | Ambushed by Subdweller buried in earth 2332 | -10/Subcaves | Core integrity fell below 20% 2375 | -10/Subcaves | Lost 5 parts (1n1u3w) 2376 | -10/Subcaves | Entered Materials 2376 | -8/Materials | Evolved 4 slots: Propulsion x2, Utility x2 2379 | -8/Materials | Attached Flightbrick, gained temporary slots: Utility x3 2695 | -8/Materials | Garrison activated, responded to threat 2801 | -8/Materials | Build established: Scavenger-Mutant 2808 | -8/Materials | Self-destructed Last Messages --------------- 02779_ Imp. Heat Sink melted. 02779_ G-47 Trooper destroyed. 02780_ K-01 Serf collects debris. 02788_ G-47 Trooper destroyed. 02788_ Switching to secondary target: G-47 Trooper. 02788_ G-47 Trooper suffers critical hit (Burn). 02791_ K-01 Serf collects debris. 02798_ R-06 Scavenger collects Aluminum Leg. 02802_ R-06 Scavenger collects Lgt. Treads. 02804_ G-47 Trooper destroyed. 02804_ Switching to secondary target: G-47 Trooper. 02804_ G-47 Trooper suffers critical hit (Burn). 02804_ Lgt. Nuclear Core melted. 02804_ G-47 Trooper destroyed. 02804_ K-01 Serf collects debris. 02806_ R-06 Scavenger collects Lgt. Treads. 02807_ Acquired 84 matter. 02808_ K-01 Serf collects debris. Map ----- +----------------------------------------------------+ | ?????????????????????????????????????????????? | | ?????????????????????????????????????????????? | | ?????????????????????????????????????????????? | | ?????????????????????????????????????????????? | | ?????????????????o???????????????????????????? | | ?????????????????????????????????????????????? | | ?????????????????????????????????????????????? | | ?????????????????????????????????????????#+#?? | | ????????????????????????????????????????? ? | | ????????????????????????????????????????? ? | | ??????????????????????+?????????????????? ? | | ?????????????????????? ?????????????????# #? | | ????????????????????? ?????????????????# #? | | ????????????????????? ?????????????????# #? | | ????????????????????? ?????????????????# ## | | ????????????????????? ?????????????????# | | ?????????????????????# ?????????????????+ | | ?????????????????????# #????????????????# | | ?????????????????????# #????????????????# #? | | ???????????"""???????# #????????????????# #? | | #########??"""???????#!#?????????######## #? | | # #??"""???????#%########### ! / #? | | ? #######??????#[ u # #? | | ? """ # #??????#=* k # # #? | | ?""""" # T" *########==== k # + #? | | #""""" + " [=%@%!!!%r u/ "T" ### #? | | #""""" # ############### #### """ #?# #? | | # """ # #?????????????# #??########?# #? | | # ## ##?????????????# #?????#####?# #? | | # [ ## ################ ####### ### #? | | # ## ## + #? | | # /!## ##" # #T##### #####? | | ########## ##T =# ###???#####????? | | ??# ] # =##" = + #??????????????? | | ??# # ## ##### ####??????????????? | | ??#""" + ## #???# #?????????????????? | | ??#""" ! # *####+####???# #?????????????????? | | ??#""" # =%## #????# #?????????????????? | | ??# # [ ###### #######???????????? | | ??######## #= #???????????? | | ?????????# ### # """#???????????? | | ?????????###### #?# # """#???????????? | | ????????????### ####?# + """#???????????? | | ????????????## ####??#+## # """#???????????? | | ?????????????####???? # # """#???????????? | | ????????????????????# # # #???????????? | | ????????????????????# # #######???????????? | | ????????????????????# # #?????????????????? | | ????????????????????# # #######???????????? | | ????????#???######### # # #???????????? | +----------------------------------------------------+ Best States ------------- Heat Dissipation 65 Energy Generation 15 Energy Capacity 250 Matter Stores 300 Matter Capacity 300 Sight Range 16 Terrain Scan Range 16 Terrain Scan Density 10 Additional Mass Support 6 Armor Coverage 225 Evasion (%) 70 Recoil Reduction 2 Item Schematics ----------------- None Robot Schematics ------------------ None Fabricated ------------ Nothing Alien Tech Used ----------------- None Achievements -------------- None Challenges ------------ None Game ------ Seed MetafiberPortableModule Manual? 0 Play Time 00:24:12 Cumulative 53.5 hours Start 2024.08.02 @ 09:24:28 End 2024.08.02 @ 09:49:17 Sessions 1 Manual Loads 0 Difficulty Rogue Special Mode None Game No. 101 Rogue 100 Adventurer 1 Explorer 0 Win Type - Total 0 Types 0/0/0/0/0/0/0/0/0 Lore% 27 Gallery% 44 Achievement% 36 Wizard Run 0 Options --------- Layout 2 ASCII 0 Keyboard 0 Movement Mouse Keybinds 0 Fullscreen 1 Font 48/Smallcaps Map View 50x44 Zoom Use 0% Tactical HUD 1 Map Filters NONE Filters NONE Steam 1 RUN: 03e05093-e0c7-41c7-a043-1c97f81990b6